fUSD/lending_fUSD_20250708
["ID","MTS","AMOUNT","RATE_DAILY","PERIOD"]
[370403651,1752000676552,-1274.85,0.00024931,2]
[370403652,1752000676562,-617.84,0.00024931,2]
[370403653,1752000676571,-679.31,0.00024931,2]
[370403654,1752000676581,-460.0,0.00024931,2]
[370403655,1752000676590,-460.0,0.00024931,2]
[370403656,1752000676599,-1789.02,0.00024931,2]
[370403657,1752000676609,-934.52,0.00024931,2]
[370403658,1752000676618,-520.40379614,0.00024931,2]
[370403659,1752000676627,-506.34,0.00024931,2]
[370403660,1752000676636,-460.0,0.00024931,2]
[370403661,1752000676646,-460.0,0.00024931,2]
[370403662,1752000676655,-300.0,0.00024931,2]
[370403663,1752000676664,-460.0,0.00024931,2]
[370403664,1752000676674,-3145.94,0.00024931,2]
[370403665,1752000676683,-460.0,0.00024931,2]
[370403666,1752000676692,-460.0,0.00024931,2]
[370403667,1752000676701,-961.73,0.00024931,2]
[370403668,1752000676711,-547.85005189,0.00024931,2]
[370403669,1752000676722,-460.0,0.00024931,2]
[370403670,1752000676731,-460.0,0.00024931,2]
[370403671,1752000676740,-859.82,0.00024931,2]
[370403672,1752000676751,-460.0,0.00024931,2]
[370403673,1752000676761,-689.76,0.00024931,2]
[370403674,1752000676771,-3344.13,0.00024931,2]
[370403675,1752000676781,-460.0,0.00024931,2]
[370403676,1752000676791,-460.0,0.00024931,2]
[370403677,1752000676801,-717.93,0.00024931,2]
[370403678,1752000676810,-507.71,0.00024931,2]
[370403679,1752000676819,-1919.98,0.00024931,2]
[370403680,1752000676829,-460.0,0.00024931,2]
[370403681,1752000676838,-2262.41,0.00024931,2]
[370403682,1752000676848,-460.0,0.00024931,2]
[370403683,1752000676857,-1644.48,0.00024931,2]
[370403684,1752000676867,-460.0,0.00024931,2]
[370403685,1752000676876,-1508.86,0.00024931,2]
[370403686,1752000676886,-460.0,0.00024931,2]
[370403687,1752000676895,-468.39,0.00024931,2]
[370403688,1752000676904,-1178.19,0.00024931,2]
[370403689,1752000676914,-1538.39,0.00024931,2]
[370403690,1752000676924,-460.0,0.00024931,2]
[370403691,1752000676933,-663.31,0.00024931,2]
[370403692,1752000676943,-460.0,0.00024931,2]
[370403693,1752000676953,-805.65,0.00024931,2]
[370403694,1752000676962,-304.53371005,0.00024931,2]
[370403695,1752000676973,-2529.37,0.00024931,2]
[370403696,1752000676983,-460.0,0.00024931,2]
[370403697,1752000676992,-460.0,0.00024931,2]
[370403698,1752000677002,-1224.72,0.00024931,2]
[370403699,1752000677011,-460.0,0.00024931,2]
[370403700,1752000677021,-601.13382135,0.00024931,2]
[370403701,1752000677030,-658.38,0.00024931,2]
[370403702,1752000677040,-460.0,0.00024931,2]
[370403703,1752000677050,-454.97980268,0.00024931,2]
[370403704,1752000677059,-598.26,0.00024931,2]
[370403705,1752000677069,-2133.1,0.00024931,2]
[370403706,1752000677079,-1005.54,0.00024931,2]
[370403707,1752000677088,-3310.1,0.00024931,2]
[370403708,1752000677098,-833.58,0.00024931,2]
[370403709,1752000677107,-460.0,0.00024931,2]
[370403710,1752000677117,-460.0,0.00024931,2]
[370403711,1752000677126,-501.71,0.00024931,2]
[370403712,1752000677136,-759.27,0.00024931,2]
[370403713,1752000677146,-867.93,0.00024931,2]
[370403714,1752000677155,-460.0,0.00024931,2]
[370403715,1752000677165,-460.0,0.00024931,2]
[370403716,1752000677174,-574.8,0.00024931,2]
[370403717,1752000677184,-460.0,0.00024931,2]
[370403718,1752000677194,-1429.18,0.00024931,2]
[370403719,1752000677203,-1125.25,0.00024931,2]
[370403720,1752000677213,-1750.6,0.00024931,2]
[370403721,1752000677224,-460.0,0.00024931,2]
[370403722,1752000677234,-850.78,0.00024931,2]
[370403723,1752000677244,-460.0,0.00024931,2]
[370403724,1752000677254,-460.0,0.00024931,2]
[370403725,1752000677263,-958.87,0.00024931,2]
[370403726,1752000677273,-540.72,0.00024931,2]
[370403727,1752000677282,-1052.27,0.00024931,2]
[370403728,1752000677292,-487.27,0.00024931,2]
[370403729,1752000677301,-1026.18,0.00024931,2]
[370403730,1752000677311,-460.0,0.00024931,2]
[370403731,1752000677320,-598.48,0.00024931,2]
[370403732,1752000677329,-653.63,0.00024931,2]
[370403733,1752000677339,-460.0,0.00024931,2]
[370403734,1752000677348,-460.0,0.00024931,2]
[370403735,1752000677358,-460.0,0.00024931,2]
[370403736,1752000677367,-460.0,0.00024931,2]
[370403737,1752000677376,-587.73,0.00024931,2]
[370403738,1752000677386,-460.0,0.00024931,2]
[370403739,1752000677400,-921.01,0.00024931,2]
[370403740,1752000677409,-1155.12,0.00024931,2]
[370403741,1752000677419,-950.77,0.00024931,2]
[370403742,1752000677428,-482.08,0.00024931,2]
[370403743,1752000677438,-460.0,0.00024931,2]
[370403744,1752000677447,-1428.59,0.00024931,2]
[370403745,1752000677457,-566.5,0.00024931,2]
[370403746,1752000677466,-3219.79,0.00024931,2]
[370403747,1752000677478,-460.0,0.00024931,2]
[370403748,1752000677488,-2112.91,0.00024931,2]
[370403749,1752000677497,-460.0,0.00024931,2]
[370403750,1752000677507,-1971.52,0.00024931,2]
[370403751,1752000677516,-2181.09,0.00024931,2]
[370403752,1752000677525,-460.0,0.00024931,2]
[370403753,1752000677535,-460.0,0.00024931,2]
[370403754,1752000677544,-557.26,0.00024931,2]
[370403755,1752000677555,-998.53,0.00024931,2]
[370403756,1752000677564,-571.92,0.00024931,2]
[370403757,1752000677573,-3223.68,0.00024931,2]
[370403758,1752000677583,-604.21,0.00024931,2]
[370403759,1752000677592,-460.0,0.00024931,2]
[370403760,1752000677602,-474.62,0.00024931,2]
[370403761,1752000677611,-3907.9,0.00024931,2]
[370403762,1752000677621,-610.2,0.00024931,2]
[370403763,1752000677631,-2403.23,0.00024931,2]
[370403764,1752000677640,-1166.37,0.00024931,2]
[370403765,1752000677649,-460.0,0.00024931,2]
[370403766,1752000677658,-444.05,0.00024931,2]
[370403767,1752000677667,-1079.94,0.00024931,2]
[370403768,1752000677676,-460.0,0.00024931,2]
[370403769,1752000677687,-597.52,0.00024931,2]
[370403770,1752000677696,-460.0,0.00024931,2]
[370403771,1752000677705,-524.37,0.00024931,2]
[370403772,1752000677714,-460.0,0.00024931,2]
[370403773,1752000677725,-501.31,0.00024931,2]
[370403774,1752000677734,-3118.53,0.00024931,2]
[370403775,1752000677744,-460.0,0.00024931,2]
[370403776,1752000677753,-460.0,0.00024931,2]
[370403777,1752000677763,-3006.4,0.00024931,2]
[370403778,1752000677772,-577.4992696,0.00024931,2]
[370403779,1752000677781,-1722.19,0.00024931,2]
[370403780,1752000677791,-2572.27,0.00024931,2]
[370403781,1752000677800,-619.88,0.00024931,2]
[370403782,1752000677811,-460.0,0.00024931,2]
[370403783,1752000677820,-1280.31,0.00024931,2]
[370403784,1752000677829,-865.25,0.00024931,2]
[370403785,1752000677840,-839.01,0.00024931,2]
[370403786,1752000677850,-1875.58,0.00024931,2]
[370403787,1752000677860,-2389.54,0.00024931,2]
[370403788,1752000677869,-460.0,0.00024931,2]
[370403789,1752000677879,-3067.21,0.00024931,2]
[370403790,1752000677888,-460.0,0.00024931,2]
[370403791,1752000677897,-460.0,0.00024931,2]
[370403792,1752000677907,-1259.53,0.00024931,2]
[370403793,1752000677916,-460.0,0.00024931,2]
[370403794,1752000677926,-460.0,0.00024931,2]
[370403795,1752000677935,-460.0,0.00024931,2]
[370403796,1752000677945,-1257.72,0.00024931,2]
[370403797,1752000677955,-460.0,0.00024931,2]
[370403798,1752000677966,-497.04,0.00024931,2]
[370403799,1752000677975,-2828.28,0.00024931,2]
[370403800,1752000677985,-836.73,0.00024931,2]
[370403801,1752000677995,-460.0,0.00024931,2]
[370403802,1752000678005,-460.0,0.00024931,2]
[370403803,1752000678014,-571.99,0.00024931,2]
[370403804,1752000678024,-2008.67,0.00024931,2]
[370403805,1752000678033,-1046.92,0.00024931,2]
[370403806,1752000678043,-460.0,0.00024931,2]
[370403807,1752000678052,-1261.35,0.00024931,2]
[370403808,1752000678061,-1532.06,0.00024931,2]
[370403809,1752000678071,-460.0,0.00024931,2]
[370403810,1752000678080,-460.0,0.00024931,2]
[370403811,1752000678090,-1440.92,0.00024931,2]
[370403812,1752000678099,-460.0,0.00024931,2]
[370403813,1752000678109,-528.71,0.00024931,2]
[370403814,1752000678119,-1317.27,0.00024931,2]
[370403815,1752000678129,-1077.47,0.00024931,2]
[370403816,1752000678139,-460.0,0.00024931,2]
[370403817,1752000678149,-1980.99,0.00024931,2]
[370403818,1752000678159,-460.0,0.00024931,2]
[370403819,1752000678168,-1077.58,0.00024931,2]
[370403820,1752000678178,-488.77,0.00024931,2]
[370403821,1752000678188,-490.0,0.00024931,2]
[370403822,1752000678197,-460.0,0.00024931,2]
[370403823,1752000678206,-460.0,0.00024931,2]
[370403824,1752000678216,-462.47,0.00024931,2]
[370403825,1752000678226,-552.21,0.00024931,2]
[370403826,1752000678236,-900.95,0.00024931,2]
[370403827,1752000678246,-460.0,0.00024931,2]
[370403828,1752000678255,-460.0,0.00024931,2]
[370403829,1752000678265,-978.73,0.00024931,2]
[370403830,1752000678275,-460.0,0.00024931,2]
[370403831,1752000678285,-925.04,0.00024931,2]
[370403832,1752000678295,-460.0,0.00024931,2]
[370403833,1752000678306,-745.52,0.00024931,2]
[370403834,1752000678315,-633.65,0.00024931,2]
[370403835,1752000678326,-460.0,0.00024931,2]
[370403836,1752000678335,-1708.76,0.00024931,2]
[370403837,1752000678345,-460.0,0.00024931,2]
[370403838,1752000678354,-460.0,0.00024931,2]
[370403839,1752000678364,-478.53,0.00024931,2]
[370403840,1752000678375,-460.0,0.00024931,2]
[370403841,1752000678386,-460.0,0.00024931,2]
[370403842,1752000678403,-583.46,0.00024931,2]
[370403843,1752000678412,-705.79,0.00024931,2]
[370403844,1752000678422,-460.0,0.00024931,2]
[370403845,1752000678431,-1235.94,0.00024931,2]
[370403846,1752000678443,-460.0,0.00024931,2]
[370403847,1752000678453,-460.0,0.00024931,2]
[370403848,1752000678463,-460.0,0.00024931,2]
[370403849,1752000678474,-460.0,0.00024931,2]
[370403850,1752000678483,-460.0,0.00024931,2]
[370403851,1752000678493,-460.0,0.00024931,2]
[370403852,1752000678503,-460.0,0.00024931,2]
[370403853,1752000678512,-460.0,0.00024931,2]
[370403854,1752000678522,-460.0,0.00024931,2]
[370403855,1752000678531,-460.0,0.00024931,2]
[370403856,1752000678541,-888.7,0.00024931,2]
[370403857,1752000678551,-480.23,0.00024931,2]
[370403858,1752000678561,-962.21,0.00024931,2]
[370403859,1752000678571,-460.0,0.00024931,2]
[370403860,1752000678580,-460.0,0.00024931,2]
[370403861,1752000678589,-532.59,0.00024931,2]
[370403862,1752000678599,-1848.88,0.00024931,2]
[370403863,1752000678608,-460.0,0.00024931,2]
[370403864,1752000678618,-2748.5,0.00024931,2]
[370403865,1752000678627,-460.0,0.00024931,2]
[370403866,1752000678637,-460.0,0.00024931,2]
[370403867,1752000678646,-2222.67,0.00024931,2]
[370403868,1752000678655,-460.0,0.00024931,2]
[370403869,1752000678665,-602.8,0.00024931,2]
[370403870,1752000678674,-1226.75,0.00024931,2]
[370403871,1752000678684,-460.0,0.00024931,2]
[370403872,1752000678695,-460.0,0.00024931,2]
[370403873,1752000678704,-636.23,0.00024931,2]
[370403874,1752000678715,-460.0,0.00024931,2]
[370403875,1752000678725,-604.53,0.00024931,2]
[370403876,1752000678735,-656.56,0.00024931,2]
[370403877,1752000678744,-614.38,0.00024931,2]
[370403878,1752000678754,-742.07,0.00024931,2]
[370403879,1752000678764,-1662.53,0.00024931,2]
[370403880,1752000678774,-480.66,0.00024931,2]
[370403881,1752000678783,-584.17,0.00024931,2]
[370403882,1752000678792,-3318.83,0.00024931,2]
[370403883,1752000678804,-460.0,0.00024931,2]
[370403884,1752000678814,-1243.12,0.00024931,2]
[370403885,1752000678823,-460.0,0.00024931,2]
[370403886,1752000678833,-460.0,0.00024931,2]
[370403887,1752000678843,-2174.84,0.00024931,2]
[370403888,1752000678852,-460.0,0.00024931,2]
[370403889,1752000678862,-505.9,0.00024931,2]
[370403890,1752000678871,-1420.77,0.00024931,2]
[370403891,1752000678882,-460.0,0.00024931,2]
[370403892,1752000678892,-460.0,0.00024931,2]
[370403893,1752000678901,-1304.31,0.00024931,2]
[370403894,1752000678912,-460.0,0.00024931,2]
[370403895,1752000678922,-1622.34,0.00024931,2]
[370403896,1752000678931,-460.0,0.00024931,2]
[370403897,1752000678941,-460.0,0.00024931,2]
[370403898,1752000678951,-460.0,0.00024931,2]
[370403899,1752000678961,-460.0,0.00024931,2]
[370403900,1752000678972,-669.57,0.00024931,2]
[370403901,1752000678982,-460.0,0.00024931,2]
[370403902,1752000678992,-1019.76,0.00024931,2]
[370403903,1752000679001,-2958.15,0.00024931,2]
[370403904,1752000679011,-984.38,0.00024931,2]
[370403905,1752000679020,-460.0,0.00024931,2]
[370403906,1752000679131,-460.0,0.00024931,2]
[370403907,1752000679141,-1267.13,0.00024931,2]
[370403908,1752000679150,-801.88,0.00024931,2]
[370403909,1752000679159,-460.0,0.00024931,2]
[370403910,1752000679169,-460.0,0.00024931,2]
[370403911,1752000679179,-460.0,0.00024931,2]
[370403912,1752000679189,-3356.26,0.00024931,2]
[370403913,1752000679198,-732.68,0.00024931,2]
[370403914,1752000679207,-460.0,0.00024931,2]
[370403915,1752000679217,-460.0,0.00024931,2]
[370403916,1752000679227,-955.7,0.00024931,2]
[370403917,1752000679237,-460.0,0.00024931,2]
[370403918,1752000679246,-460.0,0.00024931,2]
[370403919,1752000679256,-514.99,0.00024931,2]
[370403920,1752000679266,-460.0,0.00024931,2]
[370403921,1752000679278,-460.0,0.00024931,2]
[370403922,1752000679289,-460.0,0.00024931,2]
[370403923,1752000679298,-460.0,0.00024931,2]
[370403924,1752000679308,-1055.0,0.00024931,2]
[370403925,1752000679318,-1623.46,0.00024931,2]
[370403926,1752000679328,-460.0,0.00024931,2]
[370403927,1752000679339,-575.4,0.00024931,2]
[370403928,1752000679348,-479.33,0.00024931,2]
[370403929,1752000679358,-460.0,0.00024931,2]
[370403930,1752000679367,-502.21,0.00024931,2]
[370403931,1752000679377,-460.0,0.00024931,2]
[370403932,1752000679388,-1064.87,0.00024931,2]
[370403933,1752000679397,-460.0,0.00024931,2]
[370403934,1752000679407,-1011.64,0.00024931,2]
[370403935,1752000679416,-1803.38,0.00024931,2]
[370403936,1752000679425,-703.3,0.00024931,2]
[370403937,1752000679436,-460.0,0.00024931,2]
[370403938,1752000679445,-460.0,0.00024931,2]
[370403939,1752000679454,-460.0,0.00024931,2]
[370403940,1752000679464,-680.59,0.00024931,2]
[370403941,1752000679475,-2603.08,0.00024931,2]
[370403942,1752000679484,-639.46,0.00024931,2]
[370403943,1752000679493,-500.0,0.00024931,2]
[370403944,1752000679503,-1130.89,0.00024931,2]
[370403945,1752000679512,-721.37,0.00024931,2]
[370403946,1752000679521,-460.0,0.00024931,2]
[370403947,1752000679531,-460.0,0.00024931,2]
[370403948,1752000679540,-1148.63,0.00024931,2]
[370403949,1752000679549,-674.33,0.00024931,2]
[370403950,1752000679559,-460.0,0.00024931,2]
[370403951,1752000679568,-1864.82,0.00024931,2]
[370403952,1752000679577,-1021.16,0.00024931,2]
[370403953,1752000679587,-4012.69,0.00024931,2]
[370403954,1752000679596,-460.0,0.00024931,2]
[370403955,1752000679605,-525.93,0.00024931,2]
[370403956,1752000679615,-460.0,0.00024931,2]
[370403957,1752000679624,-460.0,0.00024931,2]
[370403958,1752000679633,-460.0,0.00024931,2]
[370403959,1752000679643,-460.0,0.00024931,2]
[370403960,1752000679652,-683.93,0.00024931,2]
[370403961,1752000679662,-460.0,0.00024931,2]
[370403962,1752000679672,-460.0,0.00024931,2]
[370403963,1752000679681,-460.0,0.00024931,2]
[370403964,1752000679691,-460.0,0.00024931,2]
[370403965,1752000679700,-1001.04,0.00024931,2]
[370403966,1752000679710,-460.0,0.00024931,2]
[370403967,1752000679721,-151.87008638,0.00024931,2]
[370403968,1752000679731,-933.24,0.00024931,2]
[370403969,1752000679740,-1332.96,0.00024931,2]
[370403970,1752000679749,-952.14,0.00024931,2]
[370403971,1752000679759,-2532.89,0.00024931,2]
[370403972,1752000679768,-460.0,0.00024931,2]
[370403973,1752000679777,-2340.63,0.00024931,2]
[370403974,1752000679787,-460.0,0.00024931,2]
[370403975,1752000679796,-6770.26,0.00024931,2]
[370403976,1752000679806,-460.0,0.00024931,2]
[370403977,1752000679815,-460.0,0.00024931,2]
[370403978,1752000679825,-1626.78,0.00024931,2]
[370403979,1752000679834,-721.79,0.00024931,2]
[370403980,1752000679844,-460.0,0.00024931,2]
[370403981,1752000679853,-570.65,0.00024931,2]
[370403982,1752000679863,-460.0,0.00024931,2]
[370403983,1752000679872,-1240.91,0.00024931,2]
[370403984,1752000679882,-460.0,0.00024931,2]
[370403985,1752000679892,-556.73,0.00024931,2]
[370403986,1752000679901,-460.0,0.00024931,2]
[370403987,1752000679911,-822.45,0.00024931,2]
[370403988,1752000679921,-460.0,0.00024931,2]
[370403989,1752000679931,-460.0,0.00024931,2]
[370403990,1752000679940,-492.591147,0.00024931,2]
[370403991,1752000679950,-1141.37,0.00024931,2]
[370403992,1752000679959,-990.27,0.00024931,2]
[370403993,1752000679969,-460.0,0.00024931,2]
[370403994,1752000679980,-460.0,0.00024931,2]
[370403995,1752000679990,-1696.49,0.00024931,2]
[370403996,1752000680001,-2045.37,0.00024931,2]
[370403997,1752000680011,-517.5,0.00024931,2]
[370403998,1752000680021,-775.15,0.00024931,2]
[370403999,1752000680031,-479.68,0.00024931,2]
[370404000,1752000680040,-460.0,0.00024931,2]
[370404001,1752000680050,-978.89,0.00024931,2]
[370404002,1752000680060,-460.0,0.00024931,2]
[370404003,1752000680069,-1503.83,0.00024931,2]
[370404004,1752000680079,-1220.08,0.00024931,2]
[370404005,1752000680088,-576.62,0.00024931,2]
[370404006,1752000680097,-830.27,0.00024931,2]
[370404007,1752000680106,-460.0,0.00024931,2]
[370404008,1752000680116,-1821.26,0.00024931,2]
[370404009,1752000680125,-1968.84,0.00024931,2]
[370404010,1752000680135,-537.07,0.00024931,2]
[370404011,1752000680144,-460.0,0.00024931,2]
[370404012,1752000680153,-528.99,0.00024931,2]
[370404013,1752000680163,-460.0,0.00024931,2]
[370404014,1752000680172,-478.74,0.00024931,2]
[370404015,1752000680181,-460.0,0.00024931,2]
[370404016,1752000680190,-460.0,0.00024931,2]
[370404017,1752000680200,-649.66,0.00024931,2]
[370404018,1752000680209,-460.0,0.00024931,2]
[370404019,1752000680219,-978.8,0.00024931,2]
[370404020,1752000680229,-1056.98,0.00024931,2]
[370404021,1752000680238,-1364.55,0.00024931,2]
[370404022,1752000680247,-1253.47,0.00024931,2]
[370404023,1752000680257,-1010.66,0.00024931,2]
[370404024,1752000680267,-3750.51,0.00024931,2]
[370404025,1752000680276,-460.0,0.00024931,2]
[370404026,1752000680286,-521.29,0.00024931,2]
[370404027,1752000680295,-460.0,0.00024931,2]
[370404028,1752000680304,-637.31,0.00024931,2]
[370404029,1752000680313,-460.0,0.00024931,2]
[370404030,1752000680323,-886.97,0.00024931,2]
[370404031,1752000680332,-673.75,0.00024931,2]
[370404032,1752000680342,-460.0,0.00024931,2]
[370404033,1752000680351,-460.0,0.00024931,2]
[370404034,1752000680360,-1850.49,0.00024931,2]
[370404035,1752000680370,-550.32,0.00024931,2]
[370404036,1752000680380,-688.0,0.00024931,2]
[370404037,1752000680393,-1565.51,0.00024931,2]
[370404038,1752000680402,-770.53,0.00024931,2]
[370404039,1752000680413,-3102.29,0.00024931,2]
[370404040,1752000680424,-460.0,0.00024931,2]
[370404041,1752000680435,-573.18,0.00024931,2]
[370404042,1752000680444,-2064.02,0.00024931,2]
[370404043,1752000680454,-755.57,0.00024931,2]
[370404044,1752000680465,-1587.34,0.00024931,2]
[370404045,1752000680478,-460.0,0.00024931,2]
[370404046,1752000680487,-460.0,0.00024931,2]
[370404047,1752000680497,-460.0,0.00024931,2]
[370404048,1752000680507,-720.77,0.00024931,2]
[370404049,1752000680516,-460.0,0.00024931,2]
[370404050,1752000680527,-460.0,0.00024931,2]
[370404051,1752000680537,-490.0,0.00024931,2]
[370404052,1752000680547,-460.0,0.00024931,2]
[370404053,1752000680557,-3310.94,0.00024931,2]
[370404054,1752000680566,-2160.27,0.00024931,2]
[370404055,1752000680576,-460.0,0.00024931,2]
[370404056,1752000680587,-3364.83,0.00024931,2]
[370404057,1752000680597,-460.0,0.00024931,2]
[370404058,1752000680608,-1903.65,0.00024931,2]
[370404059,1752000680620,-460.0,0.00024931,2]
[370404060,1752000680631,-460.0,0.00024931,2]
[370404061,1752000680642,-1369.4,0.00024931,2]
[370404062,1752000680652,-460.0,0.00024931,2]
[370404063,1752000680663,-460.0,0.00024931,2]
[370404064,1752000680675,-460.0,0.00024931,2]
[370404065,1752000680685,-1258.59,0.00024931,2]
[370404066,1752000680695,-975.57,0.00024931,2]
[370404067,1752000680705,-460.0,0.00024931,2]
[370404068,1752000680715,-2035.48,0.00024931,2]
[370404069,1752000681028,-793.18,0.00024931,2]
[370404070,1752000681038,-986.26,0.00024931,2]
[370404071,1752000681048,-1763.85,0.00024931,2]
[370404072,1752000681058,-939.98,0.00024931,2]
[370404073,1752000681068,-1847.09,0.00024931,2]
[370404074,1752000681078,-460.0,0.00024931,2]
[370404075,1752000681088,-460.0,0.00024931,2]
[370404076,1752000681099,-507.89,0.00024931,2]
[370404077,1752000681110,-1853.33,0.00024931,2]
[370404078,1752000681120,-2705.41,0.00024931,2]
[370404079,1752000681131,-264.05542482,0.00024931,2]
[370404080,1752000681141,-1766.12,0.00024931,2]
[370404081,1752000681151,-460.0,0.00024931,2]
[370404082,1752000681160,-1299.82,0.00024931,2]
[370404083,1752000681170,-1214.34,0.00024931,2]
[370404084,1752000681181,-460.0,0.00024931,2]
[370404085,1752000681192,-1716.92,0.00024931,2]
[370404086,1752000681203,-3449.3,0.00024931,2]
[370404087,1752000681213,-460.0,0.00024931,2]
[370404088,1752000681222,-460.0,0.00024931,2]
[370404089,1752000681231,-876.49,0.00024931,2]
[370404090,1752000681241,-934.8,0.00024931,2]
[370404091,1752000681250,-796.51,0.00024931,2]
[370404092,1752000681260,-460.0,0.00024931,2]
[370404093,1752000681269,-1295.08,0.00024931,2]
[370404094,1752000681278,-460.0,0.00024931,2]
[370404095,1752000681287,-1463.85,0.00024931,2]
[370404096,1752000681296,-1023.54,0.00024931,2]
[370404097,1752000681306,-461.71,0.00024931,2]
[370404098,1752000681315,-844.37,0.00024931,2]
[370404099,1752000681324,-1687.6,0.00024931,2]
[370404100,1752000681334,-735.48,0.00024931,2]
[370404101,1752000681343,-535.56,0.00024931,2]
[370404102,1752000681353,-1008.31,0.00024931,2]
[370404103,1752000681362,-460.0,0.00024931,2]
[370404104,1752000681372,-3711.52,0.00024931,2]
[370404105,1752000681381,-460.0,0.00024931,2]
[370404106,1752000681392,-1865.69,0.00024931,2]
[370404107,1752000681402,-460.0,0.00024931,2]
[370404108,1752000681411,-2133.32,0.00024931,2]
[370404109,1752000681422,-460.0,0.00024931,2]
[370404110,1752000681432,-1867.83,0.00024931,2]
[370404111,1752000681441,-478.48,0.00024931,2]
[370404112,1752000681450,-460.0,0.00024931,2]
[370404113,1752000681461,-460.0,0.00024931,2]
[370404114,1752000681470,-591.33,0.00024931,2]
[370404115,1752000681479,-1823.84,0.00024931,2]
[370404116,1752000681489,-460.0,0.00024931,2]
[370404117,1752000681498,-460.0,0.00024931,2]
[370404118,1752000681507,-511.69,0.00024931,2]
[370404119,1752000681517,-1862.99,0.00024931,2]
[370404120,1752000681526,-460.0,0.00024931,2]
[370404121,1752000681535,-594.94,0.00024931,2]
[370404122,1752000681545,-940.91,0.00024931,2]
[370404123,1752000681554,-1539.15,0.00024931,2]
[370404124,1752000681564,-1534.2,0.00024931,2]
[370404125,1752000681573,-1803.42,0.00024931,2]
[370404126,1752000681583,-1953.23,0.00024931,2]
[370404127,1752000681593,-781.67,0.00024931,2]
[370404128,1752000681602,-460.0,0.00024931,2]
[370404129,1752000681612,-460.0,0.00024931,2]
[370404130,1752000681621,-2836.65,0.00024931,2]
[370404131,1752000681631,-1329.71,0.00024931,2]
[370404132,1752000681640,-460.0,0.00024931,2]
[370404133,1752000681650,-460.0,0.00024931,2]
[370404134,1752000681659,-460.0,0.00024931,2]
[370404135,1752000681669,-3653.28,0.00024931,2]
[370404136,1752000681678,-2918.61,0.00024931,2]
[370404137,1752000681687,-460.0,0.00024931,2]
[370404138,1752000681696,-8917.26,0.00024931,2]
[370404139,1752000681705,-460.0,0.00024931,2]
[370404140,1752000681715,-966.64,0.00024931,2]
[370404141,1752000681725,-621.59,0.00024931,2]
[370404142,1752000681734,-460.0,0.00024931,2]
[370404143,1752000681744,-460.0,0.00024931,2]
[370404144,1752000681753,-460.0,0.00024931,2]
[370404145,1752000681763,-3075.02,0.00024931,2]
[370404146,1752000681774,-460.0,0.00024931,2]
[370404147,1752000681783,-1868.46,0.00024931,2]
[370404148,1752000681793,-460.0,0.00024931,2]
[370404149,1752000681802,-1309.29,0.00024931,2]
[370404150,1752000681811,-460.0,0.00024931,2]